Cogmind - Beta 16.1 @@@ ROGUE MODE // 2026.04.08 @ 20:04:55 Player: dohmmass Result: Destroyed by N6-LM2(R) with Subdweller Beam Cannon Performance ------------- Evolutions (0) 0 Regions Visited (3) 600 Robots Destroyed (30) 150 Value Destroyed (548) 548 Prototype IDs (2) 40 Alien Tech Used (0) 0 Bonus (0) 0 TOTAL SCORE: 1338 Bonus ------- None Cogmind --------- Core Integrity 0/250 Matter 295/300 Energy 100/100 System Corruption 2% Temperature Cool (9) Movement Flying (40) Location -10/Subcaves Parts ------- > --- POWER (1) -------- (None) > --- PROPULSION (2) --- Flight Unit > --- UTILITY (2) ------ Signal Interpreter Hacking Suite > --- WEAPON (2) ------- Light Assault Rifle Light Assault Rifle > --- INVENTORY (5) ---- Flight Unit Structural Scanner Sensor Array Improved Terrain Scanner Small Laser Peak State ------------ > --- POWER ------------ Light Nuclear Core > --- PROPULSION ------- Light Treads Light Treads > --- UTILITY ---------- Improved Heat Sink Improved Terrain Scanner > --- WEAPON ----------- Medium Laser Small Laser > --- INVENTORY -------- Light Ion Engine [Rating: 13] Favorites ----------- Power Ion Engine Engine Ion Engine Power Core Light Nuclear Core Propulsion Light Treads Treads Light Treads Flight Unit Flight Unit Utility Structural Scanner Device Structural Scanner Processor Signal Interpreter Hackware Hacking Suite Weapon Medium Laser Energy Gun Medium Laser Ballistic Gun Light Assault Rifle Build | -11 -10 -10 -10 ------- Run | Yrd Mat Min Sub Slots Evolved . | . . . . Power . | . . . . Propulsion . | . . . . Utility . | . . . . Weapon . | . . . . Parts Attached 18 | 6 5 7 . Power 3 | 1 2 . . Engine 2 | 1 1 . . Core 1 | . 1 . . Reactor . | . . . . Propulsion 4 | 2 . 2 . Treads 2 | 2 . . . Leg . | . . . . Wheel . | . . . . Hover . | . . . . Flight 2 | . . 2 . Utility 6 | 2 2 2 . Device 4 | 2 2 . . Storage . | . . . . Processor 1 | . . 1 . Hackware 1 | . . 1 . Protection . | . . . . Artifact . | . . . . Weapon 5 | 1 1 3 . Energy Gun 2 | 1 1 . . Energy Cannon . | . . . . Ballistic Gun 3 | . . 3 . Ballistic Cannon . | . . . . Launcher . | . . . . Special Weapon . | . . . . Impact Weapon . | . . . . Slashing Weapon . | . . . . Piercing Weapon . | . . . . Special Melee Weapon . | . . . . Unidentified Prototypes . | . . . . Parts Lost 7 | . 2 4 1 Power 2 | . 1 1 . Propulsion 3 | . . 2 1 Utility 1 | . 1 . . Weapon 1 | . . 1 . Highest Loss Streak 2 | . 1 2 1 To Critical Strikes . | . . . . Average Backups 1 | . 1 2 5 Power . | . . . . Propulsion . | . . . 1 Utility . | . . 1 3 Weapon . | . . . 1 Tool/Special . | . . . . Unused Backups 1 | . . . 1 Power . | . . . . Propulsion 1 | . . . 1 Utility . | . . . . Weapon . | . . . . Tool/Special . | . . . . Average Slot Usage (%) 94 | . 94 95 82 Engine 7 | . 5 13 . Core 3 | . 5 . . Treads 23 | . 28 17 . Flight 3 | . . 8 25 Device 23 | . 27 16 . Hackware 4 | . . 11 14 Energy Gun 18 | . 26 4 . Ballistic Gun 8 | . . 22 28 Peak Build Rating 13 | 8 13 9 8 Average Rating 9 | 5 9 8 7 On Entrance 6 | . 8 9 8 Avg Prop Armor Cover (%) . | . . . . Naked Turns . | . . . . Heaviest Build 10 | 7 10 10 2 Greatest Support 40 | 40 40 40 8 Greatest Overweight (x) 2 | . . 2 . Average Overweight (x) . | . . . . Largest Inventory Capacity 5 | 5 5 5 5 Average Capacity 5 | 5 5 5 5 Most Carried 5 | 4 3 5 5 Average Carried 1 | . 1 2 5 Final Capacity 5 | 5 5 5 5 Final Carried 5 | . 3 5 5 Class Distribution -------------------- 52% | Mutant 47% | Scavenger-Mutant Dominant Class ---------------- Mutant | -10/Materials Scavenger-Mutant | -10/Mines Scavenger-Mutant | -10/Subcaves Resources | -11 -10 -10 -10 ----------- Run | Yrd Mat Min Sub Matter Collected 429 | 229 66 117 17 Remotely . | . . . . Salvage Created 756 | 166 418 172 . Parts 61 | 16 29 16 . Haulers Intercepted . | . . . . Recyclers Shooed . | . . . . Parts Field Recycled . | . . . . Retrieved Matter . | . . . . Parts Self-Destructed . | . . . . Prevented . | . . . . Parts Restored . | . . . . Kills | -11 -10 -10 -10 ------- Run | Yrd Mat Min Sub Combat Hostiles Destroyed 18 | . 8 10 . Guns 18 | . 8 10 . Classes Destroyed 7 | 2 4 1 . Builder 1 | . 1 . . Tunneler 5 | 5 . . . Recycler 1 | 1 . . . Operator 3 | . 3 . . Watcher 2 | . 2 . . Swarmer 9 | . . 9 . Grunt 9 | . 8 1 . Best Kill Streak 4 | 4 3 3 . Combat Bots Only 3 | . 2 3 . Max Kills in Single Turn 1 | 1 1 1 . Gunslinging . | . . . . Exploded . | . . . . Melee . | . . . . Uniques/NPCs Destroyed . | . . . . Combat | -11 -10 -10 -10 -------- Run | Yrd Mat Min Sub Hostile Shots Fired 136 | . 48 79 9 Missed 45 | . 21 18 6 Hits 91 | . 27 61 3 Projectile 91 | . 27 61 3 Critical Strikes 2 | . . 2 . Damage Taken 896 | . 328 501 67 Core 250 | . 65 138 47 Absorbed by Shields . | . . . . Core Remaining (%) 100 | 100 . . . Volleys Fired 140 | 11 78 46 5 Largest 2 | 1 2 2 2 Hottest 90 | 50 90 90 40 Shots Fired 234 | 11 136 77 10 Gun 234 | 11 136 77 10 Cannon . | . . . . Launcher . | . . . . Special . | . . . . Kinetic 64 | . . 54 10 Thermal 170 | 11 136 23 . Explosive . | . . . . Electromagnetic . | . . . . Robot Hit Streak 9 | 8 9 5 4 Robot Miss Streak 9 | 1 3 9 1 Penetration Max . | . . . . Secondary Targets 1 | . . 1 . Max Gunslinging Chain 1 | . . 1 . Shots Hit Robots 117 | 10 66 34 7 Core Hits 52 | 7 26 14 5 Critical Kills . | . . . . Critical Parts Destroyed 1 | . . 1 . Critical Strikes 4 | 1 2 1 . Burn 3 | 1 2 . . Destroy 1 | . . 1 . Melee Attacks . | . . . . Impact . | . . . . Slashing . | . . . . Piercing . | . . . . Sneak Attacks . | . . . . Combat Hostiles . | . . . . Follow-up Attacks . | . . . . Damage Inflicted 1171 | 126 681 300 64 Guns 1171 | 126 681 300 64 Cannons . | . . . . Explosions . | . . . . Melee . | . . . . Ramming . | . . . . Kinetic 263 | . . 199 64 Thermal 908 | 126 681 101 . Explosive . | . . . . Electromagnetic . | . . . . Impact . | . . . . Slashing . | . . . . Piercing . | . . . . Highest Corruption 2 | . 2 2 2 Average Corruption 2 | . 2 2 2 Corruption Purged . | . . . . Corruption Blocked . | . . . . Effects 9 | . 2 6 1 Message Errors 3 | . 1 2 . Matter Fused 1 | . . 1 . Heat Flow Errors 2 | . 1 1 . Parts Rejected 1 | . . 1 . Data Loss (minor) 2 | . . 1 1 Overload Shots . | . . . . Overflow Damage . | . . . . Projectiles . | . . . . Explosions . | . . . . Melee . | . . . . Knockbacks . | . . . . Impact . | . . . . Kinetic . | . . . . Secondary . | . . . . Self-Inflicted Damage . | . . . . Shots . | . . . . Rammed . | . . . . Targets Rammed . | . . . . Kicked . | . . . . Crushed . | . . . . Highest Temperature 148 | 40 147 148 . Average Temperature 33 | 15 40 30 . Received Heat Transfer 222 | . 177 24 21 Siege Activations . | . . . . Martial Activations . | . . . . Shielding Activations . | . . . . Robots Disrupted . | . . . . Combat Hostiles . | . . . . Robots Corrupted . | . . . . Combat Hostiles . | . . . . Parts Fried . | . . . . Impact Corruptions . | . . . . Robots Melted . | . . . . Combat Hostiles . | . . . . Parts Melted 7 | . 6 1 . Heat Transferred 2686 | 444 2005 237 . Parts Sabotaged . | . . . . Parts Stolen . | . . . . Parts Stripped . | . . . . Power Chain Reactions . | . . . . Alert | -11 -10 -10 -10 ------- Run | Yrd Mat Min Sub Maximum Alert Level . | . . . . Low Security (%) 100 | 100 100 100 . Level 1 . | . . . . Level 2 . | . . . . Level 3 . | . . . . Level 4 . | . . . . Level 5 . | . . . . High Security . | . . . . Max Security . | . . . . Peak Influence 95 | 10 95 52 . Initial . | . . . . Average 22 | 3 26 18 . Influence Increases 536 | 30 261 245 . Destroy 0b10 Robot/C 360 | . 160 200 . Destroy 0b10 Robot/NC 60 | 30 30 . . Destroy Leader 74 | . 44 30 . Successful Hack 12 | . 12 . . Lose Combat Pursuer 30 | . 15 15 . Influence Decreases 536 | 30 261 201 44 Entered New Map 24 | . . . 24 Time Decay 462 | 30 251 161 20 Lost Part 50 | . 10 40 . Squads Dispatched 3 | . 3 . . Investigation 2 | . 2 . . Extermination . | . . . . Reinforcement 1 | . 1 . . Assault . | . . . . Garrison . | . . . . Intercept . | . . . . Searches Triggered . | . . . . Construction Impeded . | . . . . Haulers Reinforced . | . . . . Active Scanning Responses . | . . . . Cargo Convoy Interrupts . | . . . . Stealth | -11 -10 -10 -10 --------- Run | Yrd Mat Min Sub Distress Signals . | . . . . Communications Jammed . | . . . . Distress Signals . | . . . . Times Spotted 27 | . 15 10 2 Peak Tracking Total 3 | . 3 3 2 Tactical Retreats 2 | . 1 1 . Traps | -11 -10 -10 -10 ------- Run | Yrd Mat Min Sub Traps Triggered 2 | . 2 . . Indirectly . | . . . . Trap Hack Attempts . | . . . . Triggered . | . . . . Disarmed . | . . . . Reprogrammed . | . . . . Reused . | . . . . Traps Extracted . | . . . . Installed . | . . . . Triggered . | . . . . Machines | -11 -10 -10 -10 ---------- Run | Yrd Mat Min Sub Machines Disabled . | . . . . Max in Single Turn . | . . . . Machines Repaired . | . . . . Machines Dismantled . | . . . . Machines Sabotaged . | . . . . Overloaded Fab Kills . | . . . . Hacking | -11 -10 -10 -10 --------- Run | Yrd Mat Min Sub Machines Accessed 3 | . 3 . . Terminals 3 | . 3 . . Fabricators . | . . . . Repair Stations . | . . . . Recycling Units . | . . . . Scanalyzers . | . . . . Garrison Access . | . . . . Total Hacks 12 | . 12 . . Successful 5 | . 5 . . Failed 6 | . 6 . . Catastrophic 1 | . 1 . . Database Lockouts 1 | . 1 . . Manual 8 | . 8 . . Terminals 12 | . 12 . . Fabricators . | . . . . Repair Stations . | . . . . Recycling Units . | . . . . Scanalyzers . | . . . . Garrison Access . | . . . . Terminal Hacks 5 | . 5 . . Record 1 | . 1 . . Prototype ID Bank 1 | . 1 . . Locate Traps 1 | . 1 . . Hauler Manifests 1 | . 1 . . Zone Layout 1 | . 1 . . Fabricator Hacks . | . . . . Repair Station Hacks . | . . . . Recycling Unit Hacks . | . . . . Scanalyzer . | . . . . Garrison Access Hacks . | . . . . Unauthorized Hacks . | . . . . Terminals . | . . . . Fabricators . | . . . . Repair Stations . | . . . . Recycling Units . | . . . . Scanalyzers . | . . . . Garrison Access . | . . . . Data Cores Recovered 1 | . 1 . . Used . | . . . . Hacking Detections 3 | . 3 . . Full Trace Events 1 | . 1 . . Feedback Events . | . . . . Feedback Blocked . | . . . . Robot Schematics Acquired . | . . . . Robots Built . | . . . . Authchips . | . . . . Time . | . . . . Total Robot Build Rating . | . . . . Part Schematics Acquired . | . . . . Parts Built . | . . . . Authchips . | . . . . Time . | . . . . Total Part Build Rating . | . . . . Part Studies Acquired . | . . . . Parts Repaired . | . . . . Time . | . . . . Parts Recycled . | . . . . Recycled Matter . | . . . . Retrieved Matter . | . . . . Retrieved Components . | . . . . Parts Scanalyzed . | . . . . Part Schematics Acquired . | . . . . Parts Damaged . | . . . . Bothacking | -11 -10 -10 -10 ------------ Run | Yrd Mat Min Sub Used RIF Installer . | . . . . Robots Hacked . | . . . . Non-combat . | . . . . Combat . | . . . . Robot Hacks Applied . | . . . . Relay Couplers Released . | . . . . Fabnet Peak Effective % . | . . . . Robots Rewired . | . . . . Allies Hacked . | . . . . Hacks Repelled . | . . . . Allies | -11 -10 -10 -10 -------- Run | Yrd Mat Min Sub Total Allies . | . . . . Largest Group . | . . . . Highest-Rated Group . | . . . . Highest-Rated Ally . | . . . . Total Orders . | . . . . Ally Attacks . | . . . . Total Damage . | . . . . Kills . | . . . . Allies Corrupted . | . . . . Allies Melted . | . . . . Intel | -11 -10 -10 -10 ------- Run | Yrd Mat Min Sub Active Infowar (turns) 1428 | 60 944 424 . Terrain 348 | 60 288 . . Structural 1080 | . 656 424 . Seismic 43 | 11 32 . . Robot Analysis Total . | . . . . Derelict Logs Recovered . | . . . . Drone Launches . | . . . . Drone Recoveries . | . . . . Exploration | -11 -10 -10 -10 ------------- Run | Yrd Mat Min Sub Turns Passed 1511 | 91 944 430 46 Spaces Moved 1011 | 41 446 433 91 Core 10 | 7 . 3 . Treads 589 | 34 446 109 . Legs . | . . . . Wheels . | . . . . Hover . | . . . . Flight 412 | . . 321 91 Fastest Speed 37 | 50 160 37 37 Average Speed 109 | 141 160 68 37 Slowest Speed 160 | 160 160 160 40 Overloaded Moves . | . . . . Propulsion Burnouts . | . . . . Robots Hopped 2 | . . 2 . Potential Cave-ins . | . . . . Cave-ins Triggered . | . . . . Exploration Rate (%) 42 | 4 64 91 10 Regions Visited 3 Branch Regions 2 Pre-discovered Areas . | . . . . Known Exits Taken 1 | . . 1 . Unknown Exits Taken 2 | 1 1 . . Scrap Searched 1 | . . 1 . Spaces Dug . | . . . . Terrain Destroyed . | . . . . Melee . | . . . . Projectile . | . . . . AOE . | . . . . Terrain Rammed . | . . . . Walls Destroyed . | . . . . Machines Disabled . | . . . . Actions | -11 -10 -10 -10 --------- Run | Yrd Mat Min Sub Total 1194 | 63 540 495 96 Wait 7 | . 6 1 . Move 1004 | 40 445 428 91 Hop 2 | . . 2 . Pick Up 20 | 6 6 8 . Fast Attach . | . . . . Attach 14 | 6 3 5 . Detach . | . . . . Swap 5 | . 2 3 . Drop 2 | . . 2 . Fire 140 | 11 78 46 5 Melee . | . . . . Ram . | . . . . Kick . | . . . . Crush . | . . . . Escape Stasis . | . . . . Rewire . | . . . . Trap . | . . . . Miscellaneous . | . . . . Route ------- -11/Scrapyard -10/Materials (discovered 4 exits: *Mat x2 / [*Min x2]) -10/Mines (discovered 2 exits: *Mat / *Sub) -10/Subcaves History --------- Turn | Location | Event 5 | -11/Scrapyard | Discovered new exit (range 15) 92 | -11/Scrapyard | Entered Materials 204 | -10/Materials | Discovered new exit (range 11) 260 | -10/Materials | Discovered new exit (range 16) 477 | -10/Materials | Build established: Scavenger-Mutant 656 | -10/Materials | Central database locked down 778 | -10/Materials | Build established: Mutant 802 | -10/Materials | Discovered new exit (range 4) 918 | -10/Materials | Discovered new exit (range 13) 1036 | -10/Materials | Entered Mines 1092 | -10/Mines | Met a Derelict bent on vengeance 1253 | -10/Mines | Core integrity fell below 50% 1437 | -10/Mines | Core integrity fell below 20% 1454 | -10/Mines | Discovered new exit (range 5) 1458 | -10/Mines | Discovered new exit (range 13) 1462 | -10/Mines | Identified exit to Materials 1464 | -10/Mines | Identified exit to Subcaves 1466 | -10/Mines | Entered Subcaves 1512 | -10/Subcaves | Destroyed by N6-LM2(R) with Subdweller Beam Cannon Last Messages --------------- 01451_ K-01 Serf collects debris. 01454_ Searching scrap... 01454_ Found Sensor Array. 01454_ Found Signal Interpreter. 01454_ Found 68 Matter. 01454_ EXIT=FOUND 01455_ Acquired Sensor Array. 01457_ Acquired Signal Interpreter. 01458_ EXIT=FOUND 01462_ EXIT=IDENTIFIED: MATERIALS 01464_ EXIT=IDENTIFIED: SUBCAVES LOCATION=SUBCAVES AMBIENT_HEAT=-10 GOAL=ESCAPE 01468_ Acquired 10 matter. 01469_ Acquired 7 matter. 01473_ V3-AV2(O) collects matter. 01507_ System corrupted: Component data lost. 01509_ Flight Unit destroyed. 01509_ 1Z-9QE(u) builds Twisted Machinery. Map ----- +----------------------------------------------------+ | ???????????????????? ??# ######???????????? | | ?????????????????????? #### ## #???????????? | | ????????????? ??????????# # % #???????????? | | ?????????????# ?????????# #???????????? | | ?????????????# #???????# # % #???????????? | | ?????????????# % ???##### ## #######???????????? | | ?????????????# ???# ## #????????????????? | | ?????????????# ??# %# #????????????????? | | ??????????????# ??# %######???????????? | | ??????????????# ??# % #???????????? | | ????????????### ### ##???????????? | | ????????????# ####????????????? | | ???????????## % % ##??????????????? | | ??????????# ## ###????????????? | | ?????????# ## ## ####?????????? | | ????????# ??# #### ##????????? | | ????????## ????# ###??# ####?????? | | ?????????## ?????# ##??# ### #?????? | | ????????????????## #??## #?# ##?????? | | ????????????????# #???##### ? ?????? | | ????????????????# #???????? ???? | | ????????????????# ##?#####? ?? | | ?????# #######??# ### #?# # ## ? | | ?????# #?## ###" "#######?? ?? | | ?????# #?# #### "##??????????? | | ????# ## ## @ ";## ""#???????????? | | ??????????# #### u R "## ""??????? | | ??????????### ##??# R " "" ??????? | | ????????????## ####???## ## "" "??????? | | ?????????????# #???????## ##?" """???????? | | ????????????# #????????## #??""""""" ??????? | | ??????????? ?????????# ""?"""" ??????? | | ????????? ?????????# """?" ?????? | | ???????? ?????????## """?" ## #?????? | | ??????? ??????????######?????#####?????? | | ??????# ???????????????????????????????? | | ?????# ???????????????????????????????? | | ????? ??????????????????????????????? | | ????? #### ??????????????????????????????? | | ???????## ????# ??????????????????????????????? | | ????????? ?????#??????????????????????????????? | | ?????????????????????????????????????????????????? | | ?????????????????????????????????????????????????? | | ?????????????????????????????????????????????????? | | ?????????????????????????????????????????????????? | | ?????????????????????????????????????????????????? | | ?????????????????????????????????????????????????? | | ?????????????????????????????????????????????????? | | ?????????????????????????????????????????????????? | | ?????????????????????????????????????????????????? | +----------------------------------------------------+ Best States ------------- Heat Dissipation 39 Energy Generation 14 Energy Capacity 250 Matter Stores 300 Matter Capacity 300 Sight Range 16 Terrain Scan Range 16 Terrain Scan Density 10 Evasion (%) 62 Recoil Reduction 2 Offensive Hacking 10 Item Schematics ----------------- None Robot Schematics ------------------ None Fabricated ------------ Nothing Repaired ---------- Nothing Studied --------- None Alien Tech Used ----------------- None Achievements -------------- None Challenges ------------ None Game ------ Seed HugePropulsionRay Manual? 0 Play Time 00:15:06 Cumulative 32.5 hours Start 2026.04.08 @ 19:49:26 End 2026.04.08 @ 20:04:55 Sessions 1 Manual Loads 0 Difficulty Rogue Special Mode None Game No. 66 Rogue 66 Adventurer 0 Explorer 0 Win Type - Total 0 Types 0/0/0/0/0/0/0/0/0/0 Lore% 14 Gallery% 28 Achievement% 16 Wizard Run 0 Options --------- Layout 1 ASCII 0 Keyboard 0 Movement Mouse Keybinds 0 Fullscreen 2 Font 48/Smallcaps Map View 50x35 Zoom Use 0% Tactical HUD 1 Map Filters NONE Filters NONE Steam 1 RUN: 4cc248c1-fade-4390-844f-82f6d393b561